Cogmind - Beta 14 *** ADVENTURER MODE // 2024.08.11 @ 15:14:42 Player: slh Result: Destroyed by D-53 Grenadier with Mini Grenade Launcher Performance ------------- Evolutions (0) 0 Regions Visited (2) 400 Robots Destroyed (15) 75 Value Destroyed (262) 262 Prototype IDs (0) 0 Alien Tech Used (0) 0 Bonus (0) 0 TOTAL SCORE: 737 Bonus ------- None Cogmind --------- Core Integrity 0/250 Matter 270/300 Energy 87/100 System Corruption 0% Temperature Cool (0) Movement Core (50) Location -10/Mines Parts ------- > --- POWER (1) -------- (None) > --- PROPULSION (2) --- (None) > --- UTILITY (2) ------ (None) > --- WEAPON (2) ------- (None) > --- INVENTORY (5) ---- Light Ion Engine Light Nuclear Core Light Treads Light Treads Mining Laser Peak State ------------ > --- POWER ------------ Ion Engine > --- PROPULSION ------- Light Treads Light Treads > --- UTILITY ---------- Small Storage Unit Signal Interpreter > --- WEAPON ----------- Medium Laser Light Assault Rifle > --- INVENTORY -------- Light Nuclear Core Aluminum Leg Aluminum Leg Aluminum Leg Wheel Improved Heat Sink Grenade Launcher [Rating: 8] Favorites ----------- Power Ion Engine Engine Ion Engine Propulsion Light Treads Treads Light Treads Leg Aluminum Leg Wheel Wheel Utility Small Storage Unit Storage Small Storage Unit Processor Signal Interpreter Weapon Light Assault Rifle Energy Gun Medium Laser Ballistic Gun Light Assault Rifle Launcher Grenade Launcher Build | -11 -10 -10 ------- Run | Yrd Mat Min Slots Evolved . | . . . Power . | . . . Propulsion . | . . . Utility . | . . . Weapon . | . . . Parts Attached 16 | 6 6 4 Power 2 | 1 1 . Engine 2 | 1 1 . Core . | . . . Reactor . | . . . Propulsion 7 | 2 2 3 Treads 2 | . 2 . Leg 2 | . . 2 Wheel 3 | 2 . 1 Hover . | . . . Flight . | . . . Utility 2 | 1 1 . Device . | . . . Storage 1 | 1 . . Processor 1 | . 1 . Hackware . | . . . Protection . | . . . Artifact . | . . . Weapon 5 | 2 2 1 Energy Gun 1 | . 1 . Energy Cannon . | . . . Ballistic Gun 3 | 2 1 . Ballistic Cannon . | . . . Launcher 1 | . . 1 Special Weapon . | . . . Impact Weapon . | . . . Slashing Weapon . | . . . Piercing Weapon . | . . . Special Melee Weapon . | . . . Unidentified Prototypes . | . . . Parts Lost 12 | . 5 7 Power 2 | . 1 1 Propulsion 5 | . 2 3 Utility . | . . . Weapon 5 | . 2 3 Highest Loss Streak 7 | . 4 7 To Critical Strikes . | . . . Average Slot Usage (%) 92 | . 92 92 Engine 12 | . 12 12 Treads 19 | . 18 24 Wheel 6 | . 8 . Storage 14 | . 14 14 Processor 13 | . 13 13 Energy Gun 5 | . 3 13 Ballistic Gun 18 | . 21 11 Peak Build Rating 8 | 6 8 8 Average Rating 6 | 3 6 7 On Entrance 4 | . 6 8 Naked Turns 2 | . . 2 Heaviest Build 13 | 12 13 13 Greatest Support 40 | 26 40 40 Greatest Overweight (x) 1 | . . 1 Average Overweight (x) . | . . . Largest Inventory Capacity 8 | 8 8 8 Average Capacity 7 | 5 8 7 Most Carried 8 | 5 8 8 Average Carried 6 | 3 5 7 Final Capacity 8 | 8 8 5 Final Carried 8 | 5 8 5 Class Distribution -------------------- 100% | Mutant Dominant Class ---------------- Mutant | -10/Materials Mutant | -10/Mines Resources | -11 -10 -10 ----------- Run | Yrd Mat Min Matter Collected 395 | 268 112 15 Remotely . | . . . Salvage Created 464 | 91 328 45 Parts 30 | 2 23 5 Haulers Intercepted . | . . . Recyclers Shooed . | . . . Parts Field Recycled . | . . . Retrieved Matter . | . . . Parts Self-Destructed . | . . . Prevented . | . . . Kills | -11 -10 -10 ------- Run | Yrd Mat Min Combat Hostiles Destroyed 10 | . 7 3 Guns 10 | . 7 3 Classes Destroyed 5 | 1 4 . Worker 2 | . 2 . Recycler 1 | 1 . . Watcher 2 | . 2 . Swarmer 6 | . 3 3 Grunt 4 | . 4 . Best Kill Streak 6 | 1 6 3 Combat Bots Only 3 | . 2 3 Max Kills in Single Turn 1 | 1 1 1 Gunslinging . | . . . Exploded . | . . . Melee . | . . . Uniques/NPCs Destroyed . | . . . Combat | -11 -10 -10 -------- Run | Yrd Mat Min Hostile Shots Fired 131 | . 74 57 Missed 41 | . 21 20 Damage Taken 1340 | . 535 805 Core 255 | . 105 150 Absorbed by Shields . | . . . Ignored by Resistances 381 | . 160 221 Core Remaining (%) 100 | 100 . . Volleys Fired 57 | 4 46 7 Largest 2 | 2 2 2 Hottest 80 | 40 40 80 Shots Fired 104 | 8 82 14 Gun 102 | 8 82 12 Cannon . | . . . Launcher 2 | . . 2 Special . | . . . Kinetic 95 | 8 82 5 Thermal 7 | . . 7 Explosive 2 | . . 2 Electromagnetic . | . . . Robot Hit Streak 20 | 7 20 3 Robot Miss Streak 4 | . 4 2 Penetration Max . | . . . Secondary Targets 3 | . 2 1 Max Gunslinging Chain 1 | . 1 1 Shots Hit Robots 78 | 7 64 7 Core Hits 37 | 3 25 9 Critical Kills . | . . . Critical Parts Destroyed 1 | . 1 . Critical Strikes 1 | . 1 . Destroy 1 | . 1 . Melee Attacks . | . . . Impact . | . . . Slashing . | . . . Piercing . | . . . Sneak Attacks . | . . . Combat Hostiles . | . . . Follow-up Attacks . | . . . Damage Inflicted 658 | 53 506 99 Guns 625 | 53 506 66 Cannons . | . . . Explosions 33 | . . 33 Melee . | . . . Ramming . | . . . Kinetic 574 | 53 506 15 Thermal 51 | . . 51 Explosive 33 | . . 33 Electromagnetic . | . . . Impact . | . . . Slashing . | . . . Piercing . | . . . Highest Corruption . | . . . Average Corruption . | . . . Corruption Purged . | . . . Corruption Blocked . | . . . Overload Shots . | . . . Overflow Damage . | . . . Projectiles . | . . . Explosions . | . . . Melee . | . . . Knockbacks . | . . . Impact . | . . . Kinetic . | . . . Secondary . | . . . Self-Inflicted Damage . | . . . Shots . | . . . Rammed . | . . . Targets Rammed . | . . . Kicked . | . . . Crushed . | . . . Highest Temperature 124 | . 124 40 Average Temperature 33 | . 42 15 Received Heat Transfer 445 | . 405 40 Siege Activations . | . . . Robots Corrupted . | . . . Combat Hostiles . | . . . Parts Fried . | . . . Impact Corruptions . | . . . Robots Melted . | . . . Combat Hostiles . | . . . Parts Melted . | . . . Heat Transferred 148 | . . 148 Parts Sabotaged . | . . . Parts Stolen . | . . . Parts Stripped . | . . . Power Chain Reactions . | . . . Alert | -11 -10 -10 ------- Run | Yrd Mat Min Peak Influence 247 | 5 247 100 Initial 15 | . 2 15 Average 89 | 2 113 59 Maximum Alert Level 1 | . 1 . Low Security (%) 81 | 100 72 100 Level 1 18 | . 27 . Level 2 . | . . . Level 3 . | . . . Level 4 . | . . . Level 5 . | . . . High Security . | . . . Max Security . | . . . Squads Dispatched 1 | . 1 . Investigation 1 | . 1 . Extermination . | . . . Reinforcement . | . . . Assault . | . . . Garrison . | . . . Intercept . | . . . Searches Triggered . | . . . Construction Impeded . | . . . Haulers Reinforced . | . . . Active Scanning Responses . | . . . Cargo Convoy Interrupts . | . . . Stealth | -11 -10 -10 --------- Run | Yrd Mat Min Distress Signals 1 | . 1 . Communications Jammed . | . . . Distress Signals . | . . . Times Spotted 35 | . 13 22 Peak Tracking Total 17 | . 5 17 Tactical Retreats 5 | . 5 . Traps | -11 -10 -10 ------- Run | Yrd Mat Min Traps Triggered . | . . . Indirectly . | . . . Trap Hack Attempts . | . . . Triggered . | . . . Disarmed . | . . . Reprogrammed . | . . . Reused . | . . . Traps Extracted . | . . . Installed . | . . . Triggered . | . . . Machines | -11 -10 -10 ---------- Run | Yrd Mat Min Machines Disabled . | . . . Max in Single Turn . | . . . Machines Repaired . | . . . Machines Dismantled . | . . . Machines Sabotaged . | . . . Overloaded Fab Kills . | . . . Hacking | -11 -10 -10 --------- Run | Yrd Mat Min Machines Accessed 4 | . 4 . Terminals 4 | . 4 . Fabricators . | . . . Repair Stations . | . . . Recycling Units . | . . . Scanalyzers . | . . . Garrison Access . | . . . Total Hacks 13 | . 13 . Successful 4 | . 4 . Failed 9 | . 9 . Catastrophic 3 | . 3 . Database Lockouts . | . . . Manual 7 | . 7 . Terminals 13 | . 13 . Fabricators . | . . . Repair Stations . | . . . Recycling Units . | . . . Scanalyzers . | . . . Garrison Access . | . . . Terminal Hacks 4 | . 4 . Robot Analysis 1 | . 1 . Branch Access Points 1 | . 1 . Locate Traps 1 | . 1 . Hauler Manifests 1 | . 1 . Fabricator Hacks . | . . . Repair Station Hacks . | . . . Recycling Unit Hacks . | . . . Scanalyzer . | . . . Garrison Access Hacks . | . . . Unauthorized Hacks . | . . . Terminals . | . . . Fabricators . | . . . Repair Stations . | . . . Recycling Units . | . . . Scanalyzers . | . . . Garrison Access . | . . . Data Cores Recovered . | . . . Used . | . . . Hacking Detections 4 | . 4 . Full Trace Events 2 | . 2 . Feedback Events . | . . . Feedback Blocked . | . . . Robot Schematics Acquired . | . . . Robots Built . | . . . Authchips . | . . . Time . | . . . Total Robot Build Rating . | . . . Part Schematics Acquired . | . . . Parts Built . | . . . Authchips . | . . . Time . | . . . Total Part Build Rating . | . . . Parts Repaired . | . . . Time . | . . . Parts Recycled . | . . . Recycled Matter . | . . . Retrieved Matter . | . . . Retrieved Components . | . . . Parts Scanalyzed . | . . . Part Schematics Acquired . | . . . Parts Damaged . | . . . Bothacking | -11 -10 -10 ------------ Run | Yrd Mat Min Used RIF Installer . | . . . Robots Hacked . | . . . Non-combat . | . . . Combat . | . . . Robot Hacks Applied . | . . . Relay Couplers Released . | . . . Fabnet Peak Effective % . | . . . Robots Rewired . | . . . Allies Hacked . | . . . Hacks Repelled . | . . . Allies | -11 -10 -10 -------- Run | Yrd Mat Min Total Allies . | . . . Largest Group . | . . . Highest-Rated Group . | . . . Highest-Rated Ally . | . . . Total Orders . | . . . Ally Attacks . | . . . Total Damage . | . . . Kills . | . . . Allies Corrupted . | . . . Allies Melted . | . . . Intel | -11 -10 -10 ------- Run | Yrd Mat Min Robot Analysis Total 1 | . 1 . Derelict Logs Recovered . | . . . Drone Launches . | . . . Drone Recoveries . | . . . Exploration | -11 -10 -10 ------------- Run | Yrd Mat Min Turns Passed 751 | 72 499 180 Spaces Moved 430 | 55 275 100 Core 13 | 10 . 3 Treads 268 | . 182 86 Legs 7 | . . 7 Wheels 142 | 45 93 4 Hover . | . . . Flight . | . . . Fastest Speed 50 | 50 90 50 Average Speed 133 | 82 136 152 Slowest Speed 190 | 100 160 190 Overloaded Moves . | . . . Propulsion Burnouts . | . . . Robots Hopped . | . . . Cave-ins Triggered . | . . . Exploration Rate (%) 21 | 3 38 24 Regions Visited 2 Branch Regions 1 Pre-discovered Areas . | . . . Known Exits Taken 1 | . 1 . Unknown Exits Taken 1 | 1 . . Scrap Searched 1 | . . 1 Spaces Dug . | . . . Terrain Destroyed 3 | . . 3 Melee . | . . . Projectile . | . . . AOE 3 | . . 3 Terrain Rammed . | . . . Walls Destroyed . | . . . Machines Disabled . | . . . Actions | -11 -10 -10 --------- Run | Yrd Mat Min Total 519 | 72 332 115 Wait . | . . . Move 428 | 54 274 100 Hop . | . . . Pick Up 14 | 7 6 1 Fast Attach 8 | 5 3 . Attach 6 | 1 3 2 Detach . | . . . Swap 2 | . . 2 Drop 4 | 1 . 3 Fire 57 | 4 46 7 Melee . | . . . Ram . | . . . Kick . | . . . Crush . | . . . Escape Stasis . | . . . Rewire . | . . . Trap . | . . . Miscellaneous . | . . . Route ------- -11/Scrapyard -10/Materials (discovered 2 exits: [*Mat] / *Min) -10/Mines History --------- Turn | Location | Event 13 | -11/Scrapyard | Discovered new exit (range 16) 73 | -11/Scrapyard | Entered Materials 267 | -10/Materials | Lost 4 parts (1p2n1w) 285 | -10/Materials | Discovered new exit (range 15) 307 | -10/Materials | Build established: Mutant 383 | -10/Materials | Identified exit to Mines 572 | -10/Materials | Entered Mines 703 | -10/Mines | Assembled infested the area 726 | -10/Mines | Core integrity fell below 50% 750 | -10/Mines | Core integrity fell below 20% 752 | -10/Mines | Destroyed by D-53 Grenadier with Mini Grenade Launcher Last Messages --------------- 00727_ as-69512 destroyed. 00729_ The unstable cave ceiling collapses. 00729_ as-85049 destroyed. 00729_ as-46627 destroyed. 00729_ as-86331 destroyed. 00731_ as-20784 destroyed. 00731_ as-48377 destroyed. 00731_ Wheel destroyed. 00733_ The unstable cave ceiling collapses. 00733_ as-28305 destroyed. 00734_ as-95925 destroyed. 00736_ Ion Engine destroyed. 00736_ as-30220 destroyed. 00742_ Aluminum Leg destroyed. 00743_ The unstable cave ceiling collapses. 00744_ Aluminum Leg destroyed. 00747_ Grenade Launcher destroyed. 00749_ Med. Laser destroyed. 00749_ Discarded Signal Interpreter. 00750_ Dropped Sml. Storage Unit. Map ----- +----------------------------------------------------+ | ??????????????????????????????????????? | | ??????????????????????????????????????? | | ??????????????????????????????????????? | | ??????????????????????????????????????? | | ??????????????????????????????????????? | | ????????????????????####??????????????? | | ????????????????????# " ??????????????? | | ????????????????????#"%#??????????????? | | ????????????????????# "#??????????????? | | ????????????????#??## #??????????????? | | ???????????????## ## ####???????????? | | ???????????????# #???????????? | | ????????????????# ###?????????? | | ???????????????## #?????????? | | ?????????????? # #?????????? | | ????????????## #?????????? | | ????????????# #?????????? | | ???????????# # d ###???????? | | ???????? $ r d #???????? | | ????????? ##??????? | | ????????? a ##?????? | | ??????????%*# ##????? | | ????????????!# =%| ####?? | | ?????????????######## ##? | | ????????????????????# !! #? | | ????????????????????## @ #? | | ?????????????????????### ##? | | ???????????????????????## # #?? | | ????????????????????????## ######?? | | ?????????????????????????#### #??????? | | ????????????????????????????# #??????? | | ????????????????????????????# #??????? | | ????????????????????????????# #??????? | | ????????????????????????????# #??????? | | ????????????????????????????# #??????? | | ????????????????????????????# #??????? | | ????????????????????????????# #??????? | | ????????????????????????????# #??????? | | ????????????????????????????# #??????? | | ????????????????????????????# #??????? | | ????????????????????????????# ##?????? | | ????????????????????????????# ###???? | | ????????????????????????????## ##??? | | ?????????????????????????????## ##?? | | ??????????????????????????????## #?? | | ??????????????????????????????## #?? | | ???????????????????????????#### #?? | | ?????????????????????????### % ##?? | | ????????????????????????## *##??? | | ????????????????????????# ##??? | +----------------------------------------------------+ Best States ------------- Heat Dissipation 25 Energy Generation 10 Energy Capacity 250 Matter Stores 300 Matter Capacity 300 Sight Range 16 Terrain Scan Density 10 Resistance: KI 20 Resistance: TH 20 Resistance: EX 20 Resistance: EM 20 Resistance: I 20 Resistance: S 20 Resistance: P 20 Evasion (%) 55 Recoil Reduction 2 Offensive Hacking 10 Item Schematics ----------------- None Robot Schematics ------------------ None Fabricated ------------ Nothing Alien Tech Used ----------------- None Achievements -------------- None Challenges ------------ None Game ------ Seed VariableSingularityBox Manual? 0 Play Time 00:09:39 Cumulative 97.7 hours Start 2024.08.11 @ 15:07:00 End 2024.08.11 @ 15:14:42 Sessions 1 Manual Loads 0 Difficulty Adventurer Special Mode None Game No. 45 Rogue 26 Adventurer 17 Explorer 2 Win Type - Total 4 Types 2/0/1/1/0/0/0/0/0 Lore% 33 Gallery% 56 Achievement% 54 Wizard Run 0 Options --------- Layout 1 ASCII 0 Keyboard 0 Movement Mouse Keybinds 0 Fullscreen 1 Font 48/Dina++ Map View 50x35 Zoom Use 0% Tactical HUD 1 Map Filters NONE Filters NONE Steam 1 RUN: 017ef1bf-15cd-48b5-87e6-00ac7eaba75b